[Event "Titled Tuesday Blitz August 08 Early 2023"]
[White "Harriott, Tyrell"]
[Black "Zavgorodniy, Sergiy"]
[WhiteFideId "2086484"]
[BlackFideId "14110148"]
[WhiteElo "2428"]
[BlackElo "2581"]
[Result "0-1"]
[Round "9"]
[TimeControl "180+1"]
[Date "2023.08.08"]
[WhiteClock "0:00:13"]
[BlackClock "0:01:48"]
[Board "95"]

1. d4 {[%clk 0:03:00]}  d5 {[%clk 0:02:58]} 2. e3 {[%clk 0:03:00]}  Nf6 {[%clk 0:02:57]} 3. Bd3 {[%clk 0:03:00]}  c5 {[%clk 0:02:56]} 4. c3 {[%clk 0:03:00]}  e6 {[%clk 0:02:55]} 5. f4 {[%clk 0:02:56]}  g6 {[%clk 0:02:53]} 6. Nf3 {[%clk 0:02:56]}  Bg7 {[%clk 0:02:54]} 7. O-O {[%clk 0:02:55]}  b6 {[%clk 0:02:54]} 8. Nbd2 {[%clk 0:02:54]}  O-O {[%clk 0:02:54]} 9. b3 {[%clk 0:02:52]}  Ba6 {[%clk 0:02:54]} 10. Bxa6 {[%clk 0:02:51]}  Nxa6 {[%clk 0:02:54]} 11. Bb2 {[%clk 0:02:52]}  Nc7 {[%clk 0:02:55]} 12. Ne5 {[%clk 0:02:52]}  Nce8 {[%clk 0:02:54]} 13. c4 {[%clk 0:02:46]}  cxd4 {[%clk 0:02:53]} 14. exd4 {[%clk 0:02:46]}  Rc8 {[%clk 0:02:53]} 15. Rc1 {[%clk 0:02:44]}  dxc4 {[%clk 0:02:53]} 16. bxc4 {[%clk 0:02:44]}  Nd6 {[%clk 0:02:53]} 17. Qe2 {[%clk 0:02:43]}  Nf5 {[%clk 0:02:53]} 18. Ndf3 {[%clk 0:02:40]}  Qd6 {[%clk 0:02:51]} 19. Rfd1 {[%clk 0:02:39]}  Rfd8 {[%clk 0:02:50]} 20. Kh1 {[%clk 0:02:29]}  h6 {[%clk 0:02:50]} 21. Rd2 {[%clk 0:02:16]}  Rc7 {[%clk 0:02:47]} 22. Rcd1 {[%clk 0:02:16]}  Rdc8 {[%clk 0:02:46]} 23. Qe1 {[%clk 0:02:12]}  Qb4 {[%clk 0:02:39]} 24. g4 {[%clk 0:02:02]}  Nd6 {[%clk 0:02:32]} 25. c5 {[%clk 0:01:38]}  bxc5 {[%clk 0:02:19]} 26. dxc5 {[%clk 0:01:39]}  Rxc5 {[%clk 0:02:14]} 27. Rxd6 {[%clk 0:01:30]}  Qxb2 {[%clk 0:02:13]} 28. Nd3 {[%clk 0:01:15]}  Qc3 {[%clk 0:02:07]} 29. Nfe5 {[%clk 0:01:02]}  Qxe1+ {[%clk 0:01:56]} 30. Nxe1 {[%clk 0:00:54]}  Rc1 {[%clk 0:01:56]} 31. h3 {[%clk 0:00:40]}  Rxd1 {[%clk 0:01:52]} 32. Rxd1 {[%clk 0:00:41]}  Nd5 {[%clk 0:01:52]} 33. Ng2 {[%clk 0:00:38]}  Nxf4 {[%clk 0:01:50]} 34. Nxf4 {[%clk 0:00:27]}  Bxe5 {[%clk 0:01:49]} 35. Rf1 {[%clk 0:00:16]}  Bxf4 {[%clk 0:01:48]} 36. Rxf4 {[%clk 0:00:15]}  Rc1+ {[%clk 0:01:47]} 37. Kg2 {[%clk 0:00:16]}  Rc2+ {[%clk 0:01:47]} 38. Kf3 {[%clk 0:00:16]}  Rxa2 {[%clk 0:01:47]} 39. Rb4 {[%clk 0:00:16]}  Ra3+ {[%clk 0:01:47]} 40. Kg2 {[%clk 0:00:16]}  Kg7 {[%clk 0:01:47]} 41. h4 {[%clk 0:00:16]}  g5 {[%clk 0:01:46]} 42. hxg5 {[%clk 0:00:15]}  hxg5 {[%clk 0:01:47]} 43. Rb7 {[%clk 0:00:15]}  a5 {[%clk 0:01:47]} 44. Rb5 {[%clk 0:00:15]}  Kg6 {[%clk 0:01:46]} 45. Rd5 {[%clk 0:00:15]}  exd5 {[%clk 0:01:46]} 46. Kh2 {[%clk 0:00:14]}  Rb3 {[%clk 0:01:46]} 47. Kg2 {[%clk 0:00:14]}  a4 {[%clk 0:01:46]} 48. Kf2 {[%clk 0:00:15]}  a3 {[%clk 0:01:47]} 49. Kg2 {[%clk 0:00:15]}  a2 {[%clk 0:01:47]} 50. Kh2 {[%clk 0:00:15]}  a1=Q {[%clk 0:01:48]} 51. Kg2 {[%clk 0:00:13]}  Qa2+ {[%clk 0:01:48]} 0-1


[Site "https://www.chess.com"]

[Event "Titled Tuesday Blitz August 08 Early 2023"]
[White "vishwa_vijeta"]
[Black "Cheer_Down"]
[WhiteElo "2570"]
[BlackElo "2422"]
[Result "1-0"]
[Round "9"]
[TimeControl "180+1"]
[Date "2023.08.08"]
[WhiteClock "0:00:04"]
[BlackClock "0:00:00"]
[Board "97"]

1. e4 {[%clk 0:02:59]}  e5 {[%clk 0:02:59]} 2. Nf3 {[%clk 0:03:00]}  Nc6 {[%clk 0:02:59]} 3. d4 {[%clk 0:02:59]}  exd4 {[%clk 0:02:59]} 4. Bc4 {[%clk 0:02:58]}  Nf6 {[%clk 0:02:58]} 5. Ng5 {[%clk 0:02:56]}  d5 {[%clk 0:02:37]} 6. exd5 {[%clk 0:02:54]}  Qe7+ {[%clk 0:02:38]} 7. Qe2 {[%clk 0:02:53]}  Qxe2+ {[%clk 0:02:30]} 8. Kxe2 {[%clk 0:02:54]}  Ne5 {[%clk 0:02:31]} 9. Bb3 {[%clk 0:02:54]}  h6 {[%clk 0:02:24]} 10. Nf3 {[%clk 0:02:52]}  Bg4 {[%clk 0:02:24]} 11. Bf4 {[%clk 0:02:47]}  Bxf3+ {[%clk 0:02:20]} 12. gxf3 {[%clk 0:02:48]}  Bd6 {[%clk 0:02:20]} 13. Nd2 {[%clk 0:02:38]}  O-O-O {[%clk 0:02:18]} 14. Ne4 {[%clk 0:02:38]}  Rhe8 {[%clk 0:01:59]} 15. Rhe1 {[%clk 0:01:52]}  Ng6 {[%clk 0:01:49]} 16. Bxd6 {[%clk 0:01:48]}  Nxe4 {[%clk 0:01:31]} 17. fxe4 {[%clk 0:01:45]}  Rxe4+ {[%clk 0:01:31]} 18. Kd3 {[%clk 0:01:41]}  Rxe1 {[%clk 0:01:31]} 19. Rxe1 {[%clk 0:01:42]}  cxd6 {[%clk 0:01:27]} 20. Kxd4 {[%clk 0:01:40]}  Ne5 {[%clk 0:01:14]} 21. Re3 {[%clk 0:01:38]}  g5 {[%clk 0:01:13]} 22. c4 {[%clk 0:01:38]}  b6 {[%clk 0:01:13]} 23. Rh3 {[%clk 0:01:35]}  Rh8 {[%clk 0:01:10]} 24. Bc2 {[%clk 0:01:31]}  Kd7 {[%clk 0:01:01]} 25. b4 {[%clk 0:01:14]}  h5 {[%clk 0:00:57]} 26. c5 {[%clk 0:01:11]}  h4 {[%clk 0:00:31]} 27. Re3 {[%clk 0:00:54]}  f6 {[%clk 0:00:29]} 28. Bf5+ {[%clk 0:00:44]}  Kc7 {[%clk 0:00:24]} 29. Ra3 {[%clk 0:00:39]}  Ra8 {[%clk 0:00:23]} 30. Ra6 {[%clk 0:00:33]}  Kb7 {[%clk 0:00:15]} 31. Ra3 {[%clk 0:00:30]}  Kc7 {[%clk 0:00:07]} 32. Rh3 {[%clk 0:00:13]}  a5 {[%clk 0:00:06]} 33. cxb6+ {[%clk 0:00:07]}  Kxb6 {[%clk 0:00:06]} 34. Rb3 {[%clk 0:00:07]}  a4 {[%clk 0:00:05]} 35. Rc3 {[%clk 0:00:06]}  a3 {[%clk 0:00:04]} 36. Rb3 {[%clk 0:00:04]}  Ra4 {[%clk 0:00:03]} 37. Be6 {[%clk 0:00:03]}  Kb5 {[%clk 0:00:03]} 38. Kc3 {[%clk 0:00:03]}  Ra7 {[%clk 0:00:02]} 39. Kd4 {[%clk 0:00:03]}  Rc7 {[%clk 0:00:00]} 40. Rc3 {[%clk 0:00:04]} 1-0


[Site "https://www.chess.com"]

[Event "Titled Tuesday Blitz August 08 Early 2023"]
[White "Toropov, Pavel"]
[Black "Llanos, Guillermo"]
[WhiteFideId "24129178"]
[BlackFideId "100358"]
[WhiteElo "2569"]
[BlackElo "2419"]
[Result "1-0"]
[Round "9"]
[TimeControl "180+1"]
[Date "2023.08.08"]
[WhiteClock "0:00:08"]
[BlackClock "0:00:12"]
[Board "98"]

1. e4 {[%clk 0:02:57]}  Nf6 {[%clk 0:02:59]} 2. e5 {[%clk 0:02:57]}  Nd5 {[%clk 0:02:59]} 3. d4 {[%clk 0:02:58]}  d6 {[%clk 0:02:59]} 4. exd6 {[%clk 0:02:59]}  cxd6 {[%clk 0:02:59]} 5. c4 {[%clk 0:03:00]}  Nb6 {[%clk 0:02:59]} 6. Nc3 {[%clk 0:02:58]}  g6 {[%clk 0:02:59]} 7. h3 {[%clk 0:02:58]}  Bg7 {[%clk 0:02:59]} 8. Nf3 {[%clk 0:02:59]}  O-O {[%clk 0:02:58]} 9. Be3 {[%clk 0:02:59]}  Nc6 {[%clk 0:02:57]} 10. Be2 {[%clk 0:02:59]}  Bf5 {[%clk 0:02:57]} 11. O-O {[%clk 0:02:56]}  d5 {[%clk 0:02:57]} 12. c5 {[%clk 0:02:56]}  Nc4 {[%clk 0:02:57]} 13. Bxc4 {[%clk 0:02:56]}  dxc4 {[%clk 0:02:57]} 14. Qa4 {[%clk 0:02:57]}  Bd3 {[%clk 0:02:56]} 15. Rfd1 {[%clk 0:02:55]}  Qe8 {[%clk 0:02:56]} 16. b3 {[%clk 0:02:31]}  e5 {[%clk 0:02:31]} 17. bxc4 {[%clk 0:00:42]}  exd4 {[%clk 0:02:23]} 18. Rxd3 {[%clk 0:00:31]}  dxc3 {[%clk 0:02:04]} 19. Rad1 {[%clk 0:00:30]}  Ne5 {[%clk 0:01:46]} 20. Qxe8 {[%clk 0:00:27]}  Nxf3+ {[%clk 0:01:45]} 21. gxf3 {[%clk 0:00:28]}  Rfxe8 {[%clk 0:01:45]} 22. Rd7 {[%clk 0:00:21]}  Rab8 {[%clk 0:01:34]} 23. Kf1 {[%clk 0:00:21]}  Rec8 {[%clk 0:01:12]} 24. Ke2 {[%clk 0:00:18]}  b6 {[%clk 0:01:13]} 25. c6 {[%clk 0:00:18]}  c2 {[%clk 0:01:01]} 26. Rc1 {[%clk 0:00:17]}  Rxc6 {[%clk 0:01:01]} 27. Rxc2 {[%clk 0:00:17]}  a6 {[%clk 0:01:00]} 28. Ra7 {[%clk 0:00:15]}  a5 {[%clk 0:00:55]} 29. Ra6 {[%clk 0:00:15]}  Bf8 {[%clk 0:00:53]} 30. c5 {[%clk 0:00:08]}  Bxc5 {[%clk 0:00:50]} 31. Rxc5 {[%clk 0:00:06]}  Rxc5 {[%clk 0:00:49]} 32. Bxc5 {[%clk 0:00:07]}  bxc5 {[%clk 0:00:49]} 33. Rxa5 {[%clk 0:00:07]}  Rc8 {[%clk 0:00:46]} 34. Kd3 {[%clk 0:00:07]}  c4+ {[%clk 0:00:45]} 35. Kc3 {[%clk 0:00:07]}  Kg7 {[%clk 0:00:41]} 36. Ra4 {[%clk 0:00:07]}  Kf6 {[%clk 0:00:41]} 37. Rxc4 {[%clk 0:00:07]}  Re8 {[%clk 0:00:39]} 38. Rd4 {[%clk 0:00:07]}  Re2 {[%clk 0:00:37]} 39. Rd2 {[%clk 0:00:07]}  Re1 {[%clk 0:00:36]} 40. a4 {[%clk 0:00:08]}  Ra1 {[%clk 0:00:35]} 41. Kb3 {[%clk 0:00:09]}  Rb1+ {[%clk 0:00:35]} 42. Rb2 {[%clk 0:00:09]}  Ra1 {[%clk 0:00:34]} 43. Ra2 {[%clk 0:00:09]}  Rb1+ {[%clk 0:00:34]} 44. Kc4 {[%clk 0:00:09]}  Rb8 {[%clk 0:00:33]} 45. a5 {[%clk 0:00:09]}  Kf5 {[%clk 0:00:32]} 46. a6 {[%clk 0:00:08]}  Kf4 {[%clk 0:00:31]} 47. Ra3 {[%clk 0:00:08]}  Rc8+ {[%clk 0:00:28]} 48. Kd5 {[%clk 0:00:08]}  f5 {[%clk 0:00:24]} 49. a7 {[%clk 0:00:08]}  g5 {[%clk 0:00:23]} 50. a8=Q {[%clk 0:00:05]}  Rxa8 {[%clk 0:00:23]} 51. Rxa8 {[%clk 0:00:06]}  Kxf3 {[%clk 0:00:23]} 52. Ke5 {[%clk 0:00:06]}  f4 {[%clk 0:00:22]} 53. Rh8 {[%clk 0:00:07]}  Kxf2 {[%clk 0:00:20]} 54. Rxh7 {[%clk 0:00:07]}  Kg3 {[%clk 0:00:20]} 55. Ke4 {[%clk 0:00:08]}  f3 {[%clk 0:00:19]} 56. Rf7 {[%clk 0:00:08]}  f2 {[%clk 0:00:18]} 57. Ke3 {[%clk 0:00:07]}  Kxh3 {[%clk 0:00:18]} 58. Kxf2 {[%clk 0:00:07]}  g4 {[%clk 0:00:18]} 59. Kg1 {[%clk 0:00:07]}  Kg3 {[%clk 0:00:12]} 60. Ra7 {[%clk 0:00:08]} 1-0


[Site "https://www.chess.com"]

[Event "Titled Tuesday Blitz August 08 Early 2023"]
[White "Topalov, Aleksandar"]
[Black "Domingo Nunez, Alejandro"]
[WhiteFideId "925659"]
[BlackFideId "22245561"]
[WhiteElo "2368"]
[BlackElo "2522"]
[Result "0-1"]
[Round "9"]
[TimeControl "180+1"]
[Date "2023.08.08"]
[WhiteClock "0:00:00"]
[BlackClock "0:00:27"]
[Board "105"]

1. b3 {[%clk 0:02:57]}  d6 {[%clk 0:02:59]} 2. Bb2 {[%clk 0:02:53]}  Nd7 {[%clk 0:03:00]} 3. c4 {[%clk 0:02:51]}  Ngf6 {[%clk 0:03:00]} 4. e3 {[%clk 0:02:51]}  g6 {[%clk 0:03:01]} 5. Nf3 {[%clk 0:02:51]}  Bg7 {[%clk 0:03:02]} 6. d3 {[%clk 0:02:51]}  O-O {[%clk 0:03:02]} 7. Be2 {[%clk 0:02:52]}  c5 {[%clk 0:03:02]} 8. O-O {[%clk 0:02:52]}  Rb8 {[%clk 0:03:03]} 9. Nc3 {[%clk 0:02:51]}  a6 {[%clk 0:03:03]} 10. d4 {[%clk 0:02:48]}  Ne8 {[%clk 0:03:03]} 11. Qd2 {[%clk 0:02:44]}  Nc7 {[%clk 0:03:03]} 12. a4 {[%clk 0:02:43]}  b6 {[%clk 0:03:02]} 13. d5 {[%clk 0:02:42]}  b5 {[%clk 0:02:51]} 14. axb5 {[%clk 0:02:40]}  axb5 {[%clk 0:02:51]} 15. cxb5 {[%clk 0:02:36]}  Nf6 {[%clk 0:02:47]} 16. Bc4 {[%clk 0:02:33]}  Bd7 {[%clk 0:02:46]} 17. Qd3 {[%clk 0:02:09]}  Ng4 {[%clk 0:02:22]} 18. h3 {[%clk 0:02:06]}  Ne5 {[%clk 0:02:22]} 19. Nxe5 {[%clk 0:02:06]}  Bxe5 {[%clk 0:02:22]} 20. f4 {[%clk 0:01:58]}  Bg7 {[%clk 0:02:22]} 21. Ra7 {[%clk 0:01:44]}  Nxb5 {[%clk 0:01:58]} 22. Nxb5 {[%clk 0:01:28]}  Bxb2 {[%clk 0:01:57]} 23. Nc3 {[%clk 0:01:26]}  Bf5 {[%clk 0:01:38]} 24. e4 {[%clk 0:01:13]}  Bxc3 {[%clk 0:01:36]} 25. exf5 {[%clk 0:01:12]}  Bd4+ {[%clk 0:01:36]} 26. Kh1 {[%clk 0:01:12]}  Bf6 {[%clk 0:01:33]} 27. g4 {[%clk 0:00:36]}  Qb6 {[%clk 0:01:31]} 28. Ra2 {[%clk 0:00:27]}  Ra8 {[%clk 0:01:30]} 29. Rg2 {[%clk 0:00:26]}  Ra3 {[%clk 0:01:22]} 30. g5 {[%clk 0:00:24]}  Bd4 {[%clk 0:01:22]} 31. h4 {[%clk 0:00:22]}  Rfa8 {[%clk 0:01:20]} 32. h5 {[%clk 0:00:20]}  Ra2 {[%clk 0:01:12]} 33. fxg6 {[%clk 0:00:17]}  hxg6 {[%clk 0:01:10]} 34. hxg6 {[%clk 0:00:16]}  Rxg2 {[%clk 0:01:09]} 35. gxf7+ {[%clk 0:00:15]}  Kg7 {[%clk 0:00:52]} 36. Kxg2 {[%clk 0:00:13]}  Ra2+ {[%clk 0:00:52]} 37. Kf3 {[%clk 0:00:12]}  Kxf7 {[%clk 0:00:33]} 38. Qf5+ {[%clk 0:00:09]}  Ke8 {[%clk 0:00:33]} 39. Qc8+ {[%clk 0:00:07]}  Kf7 {[%clk 0:00:33]} 40. Rh1 {[%clk 0:00:00]}  Qb4 {[%clk 0:00:27]} 0-1


[Site "https://www.chess.com"]

[Event "Titled Tuesday Blitz August 08 Early 2023"]
[White "Jahnz, Fabian"]
[Black "Martin Barcelo, Carles"]
[WhiteFideId "4653300"]
[BlackFideId "24561444"]
[WhiteElo "2338"]
[BlackElo "2517"]
[Result "0-1"]
[Round "9"]
[TimeControl "180+1"]
[Date "2023.08.08"]
[WhiteClock "0:00:55"]
[BlackClock "0:00:57"]
[Board "106"]

1. e4 {[%clk 0:02:56]}  Nc6 {[%clk 0:02:59]} 2. Nf3 {[%clk 0:02:55]}  e5 {[%clk 0:02:55]} 3. Bc4 {[%clk 0:02:54]}  Bc5 {[%clk 0:02:54]} 4. c3 {[%clk 0:02:54]}  Nf6 {[%clk 0:02:52]} 5. d3 {[%clk 0:02:54]}  h6 {[%clk 0:02:52]} 6. Nbd2 {[%clk 0:02:52]}  a5 {[%clk 0:02:50]} 7. h3 {[%clk 0:02:45]}  d6 {[%clk 0:02:50]} 8. Nf1 {[%clk 0:02:44]}  O-O {[%clk 0:02:46]} 9. Ng3 {[%clk 0:02:44]}  Ba7 {[%clk 0:02:45]} 10. O-O {[%clk 0:02:43]}  Ne7 {[%clk 0:02:45]} 11. Nh4 {[%clk 0:02:42]}  d5 {[%clk 0:02:42]} 12. Bb3 {[%clk 0:02:35]}  Ng6 {[%clk 0:02:20]} 13. Nxg6 {[%clk 0:02:29]}  fxg6 {[%clk 0:02:21]} 14. exd5 {[%clk 0:02:26]}  Nxd5 {[%clk 0:02:22]} 15. Bxd5+ {[%clk 0:01:46]}  Qxd5 {[%clk 0:02:21]} 16. Qb3 {[%clk 0:01:47]}  Be6 {[%clk 0:02:13]} 17. Qxd5 {[%clk 0:01:47]}  Bxd5 {[%clk 0:02:14]} 18. Be3 {[%clk 0:01:42]}  Bxe3 {[%clk 0:02:06]} 19. fxe3 {[%clk 0:01:43]}  Rxf1+ {[%clk 0:02:06]} 20. Rxf1 {[%clk 0:01:40]}  Bxa2 {[%clk 0:02:05]} 21. Ra1 {[%clk 0:01:39]}  Bb3 {[%clk 0:02:04]} 22. Ne4 {[%clk 0:01:36]}  b6 {[%clk 0:02:04]} 23. Nd2 {[%clk 0:01:28]}  Bc2 {[%clk 0:02:03]} 24. d4 {[%clk 0:01:28]}  exd4 {[%clk 0:02:02]} 25. exd4 {[%clk 0:01:28]}  Re8 {[%clk 0:02:00]} 26. Kf2 {[%clk 0:01:27]}  Kf7 {[%clk 0:01:58]} 27. Nc4 {[%clk 0:01:24]}  g5 {[%clk 0:01:36]} 28. Ne5+ {[%clk 0:01:23]}  Ke6 {[%clk 0:01:35]} 29. Re1 {[%clk 0:01:22]}  Kf6 {[%clk 0:01:29]} 30. Nd7+ {[%clk 0:01:11]}  Kf7 {[%clk 0:01:29]} 31. Ne5+ {[%clk 0:01:11]}  Kf8 {[%clk 0:01:28]} 32. Ng6+ {[%clk 0:01:09]}  Bxg6 {[%clk 0:01:28]} 33. Rf1 {[%clk 0:01:08]}  Ke7 {[%clk 0:01:27]} 34. Ke3 {[%clk 0:01:06]}  Kd6+ {[%clk 0:01:26]} 35. Kd2 {[%clk 0:01:07]}  Ke7 {[%clk 0:01:20]} 36. b4 {[%clk 0:01:06]}  axb4 {[%clk 0:01:20]} 37. cxb4 {[%clk 0:01:07]}  Ra8 {[%clk 0:01:20]} 38. Re1+ {[%clk 0:01:06]}  Kf6 {[%clk 0:01:20]} 39. Kc3 {[%clk 0:01:05]}  Ra3+ {[%clk 0:01:16]} 40. Kc4 {[%clk 0:01:05]}  c6 {[%clk 0:01:16]} 41. d5 {[%clk 0:01:04]}  cxd5+ {[%clk 0:01:14]} 42. Kxd5 {[%clk 0:01:05]}  Rb3 {[%clk 0:01:09]} 43. Re6+ {[%clk 0:01:04]}  Kf7 {[%clk 0:01:08]} 44. Rxb6 {[%clk 0:01:04]}  Bd3 {[%clk 0:01:07]} 45. Kd4 {[%clk 0:01:03]}  Bf1 {[%clk 0:01:06]} 46. Rb7+ {[%clk 0:01:03]}  Kf6 {[%clk 0:01:06]} 47. Rb6+ {[%clk 0:01:03]}  Kf5 {[%clk 0:01:06]} 48. g4+ {[%clk 0:01:02]}  Kf4 {[%clk 0:01:06]} 49. Rb7 {[%clk 0:00:58]}  Bxh3 {[%clk 0:01:05]} 50. Rf7+ {[%clk 0:00:58]}  Kxg4 {[%clk 0:01:05]} 51. Kc4 {[%clk 0:00:58]}  Rb1 {[%clk 0:01:03]} 52. Rxg7 {[%clk 0:00:58]}  Bg2 {[%clk 0:01:02]} 53. b5 {[%clk 0:00:58]}  Bf1+ {[%clk 0:00:59]} 54. Kd4 {[%clk 0:00:57]}  Rxb5 {[%clk 0:00:58]} 55. Ke3 {[%clk 0:00:58]}  Rf5 {[%clk 0:00:58]} 56. Rh7 {[%clk 0:00:57]}  h5 {[%clk 0:00:58]} 57. Rh6 {[%clk 0:00:58]}  h4 {[%clk 0:00:58]} 58. Rh7 {[%clk 0:00:58]}  Bg2 {[%clk 0:00:58]} 59. Rh6 {[%clk 0:00:58]}  h3 {[%clk 0:00:58]} 60. Rh7 {[%clk 0:00:55]}  Kg3 {[%clk 0:00:57]} 0-1


[Site "https://www.chess.com"]

[Event "Titled Tuesday Blitz August 08 Early 2023"]
[White "Ansh M Shah"]
[Black "rikchessmx"]
[WhiteFideId "25033379"]
[WhiteElo "2517"]
[BlackElo "2351"]
[Result "1-0"]
[Round "9"]
[TimeControl "180+1"]
[Date "2023.08.08"]
[WhiteClock "0:01:07"]
[BlackClock "0:02:02"]
[Board "107"]

1. d4 {[%clk 0:02:55]}  Nf6 {[%clk 0:02:58]} 2. c4 {[%clk 0:02:50]}  e6 {[%clk 0:02:58]} 3. g3 {[%clk 0:02:48]}  d5 {[%clk 0:02:58]} 4. Bg2 {[%clk 0:02:48]}  c6 {[%clk 0:02:58]} 5. Nf3 {[%clk 0:02:49]}  Nbd7 {[%clk 0:02:58]} 6. O-O {[%clk 0:02:49]}  dxc4 {[%clk 0:02:57]} 7. a4 {[%clk 0:02:48]}  b5 {[%clk 0:02:41]} 8. axb5 {[%clk 0:02:18]}  cxb5 {[%clk 0:02:38]} 9. Ne5 {[%clk 0:02:18]}  Nd5 {[%clk 0:02:38]} 10. Nc3 {[%clk 0:02:18]}  Nxe5 {[%clk 0:02:31]} 11. dxe5 {[%clk 0:02:14]}  Nxc3 {[%clk 0:02:19]} 12. Qxd8+ {[%clk 0:02:06]}  Kxd8 {[%clk 0:02:19]} 13. bxc3 {[%clk 0:01:19]}  Rb8 {[%clk 0:02:15]} 14. Rxa7 {[%clk 0:01:19]}  Bd7 {[%clk 0:02:15]} 15. Rd1 {[%clk 0:01:18]}  Bc5 {[%clk 0:02:10]} 16. Raxd7+ {[%clk 0:01:07]}  Ke8 {[%clk 0:02:02]} 17. Bc6 {[%clk 0:01:07]} 1-0


[Site "https://www.chess.com"]

[Event "Titled Tuesday Blitz August 08 Early 2023"]
[White "Valle Maytin, Luis Enrique"]
[Black "Lehtosaari, Mauri"]
[WhiteFideId "3503666"]
[BlackFideId "501999"]
[WhiteElo "2338"]
[BlackElo "2517"]
[Result "0-1"]
[Round "9"]
[TimeControl "180+1"]
[Date "2023.08.08"]
[WhiteClock "0:00:00"]
[BlackClock "0:00:13"]
[Board "108"]

1. d4 {[%clk 0:03:00]}  d5 {[%clk 0:02:56]} 2. Nf3 {[%clk 0:03:00]}  Nf6 {[%clk 0:02:56]} 3. e3 {[%clk 0:03:01]}  c6 {[%clk 0:02:55]} 4. Bd3 {[%clk 0:03:01]}  Bg4 {[%clk 0:02:56]} 5. h3 {[%clk 0:03:00]}  Bh5 {[%clk 0:02:56]} 6. g4 {[%clk 0:03:01]}  Bg6 {[%clk 0:02:57]} 7. Ne5 {[%clk 0:03:01]}  Bxd3 {[%clk 0:02:57]} 8. cxd3 {[%clk 0:03:00]}  e6 {[%clk 0:02:57]} 9. f4 {[%clk 0:03:00]}  Nfd7 {[%clk 0:02:55]} 10. g5 {[%clk 0:02:52]}  Nxe5 {[%clk 0:02:51]} 11. dxe5 {[%clk 0:02:52]}  g6 {[%clk 0:02:48]} 12. h4 {[%clk 0:02:51]}  h5 {[%clk 0:02:49]} 13. d4 {[%clk 0:02:43]}  Nd7 {[%clk 0:02:24]} 14. Nc3 {[%clk 0:02:40]}  Nb6 {[%clk 0:02:23]} 15. b3 {[%clk 0:02:39]}  Nc8 {[%clk 0:02:23]} 16. a4 {[%clk 0:02:37]}  Bb4 {[%clk 0:02:15]} 17. Bd2 {[%clk 0:02:34]}  Qa5 {[%clk 0:02:02]} 18. Rc1 {[%clk 0:02:26]}  Ne7 {[%clk 0:01:59]} 19. Ke2 {[%clk 0:02:06]}  Nf5 {[%clk 0:01:58]} 20. Kf3 {[%clk 0:02:03]}  Qd8 {[%clk 0:01:43]} 21. Ne2 {[%clk 0:01:54]}  Ba3 {[%clk 0:01:33]} 22. Ra1 {[%clk 0:01:49]}  Qe7 {[%clk 0:01:22]} 23. Qc2 {[%clk 0:01:45]}  O-O {[%clk 0:01:16]} 24. Ng3 {[%clk 0:01:34]}  Ng7 {[%clk 0:01:13]} 25. Rhb1 {[%clk 0:01:32]}  Bb4 {[%clk 0:01:11]} 26. Rc1 {[%clk 0:01:19]}  Rfc8 {[%clk 0:01:10]} 27. Bxb4 {[%clk 0:01:18]}  Qxb4 {[%clk 0:01:09]} 28. Qc3 {[%clk 0:01:18]}  Qe7 {[%clk 0:01:03]} 29. b4 {[%clk 0:01:18]}  b6 {[%clk 0:01:01]} 30. Rc2 {[%clk 0:01:07]}  Rc7 {[%clk 0:01:01]} 31. Rac1 {[%clk 0:01:06]}  Rac8 {[%clk 0:01:02]} 32. e4 {[%clk 0:00:25]}  dxe4+ {[%clk 0:00:58]} 33. Nxe4 {[%clk 0:00:26]}  Nf5 {[%clk 0:00:58]} 34. Rh1 {[%clk 0:00:16]}  Rd8 {[%clk 0:00:55]} 35. Rd2 {[%clk 0:00:13]}  Kf8 {[%clk 0:00:49]} 36. Nf6 {[%clk 0:00:11]}  Rdc8 {[%clk 0:00:31]} 37. Ne4 {[%clk 0:00:11]}  Qd8 {[%clk 0:00:30]} 38. Ng3 {[%clk 0:00:11]}  Qd5+ {[%clk 0:00:30]} 39. Ne4 {[%clk 0:00:09]}  Rd7 {[%clk 0:00:23]} 40. Rhh2 {[%clk 0:00:09]}  Kg7 {[%clk 0:00:22]} 41. Rd3 {[%clk 0:00:06]}  Nxd4+ {[%clk 0:00:19]} 42. Ke3 {[%clk 0:00:05]}  Nf5+ {[%clk 0:00:17]} 43. Kd2 {[%clk 0:00:04]}  Qxe4 {[%clk 0:00:15]} 44. Rxd7 {[%clk 0:00:04]}  Qxf4+ {[%clk 0:00:16]} 45. Kc2 {[%clk 0:00:03]}  Qxh2+ {[%clk 0:00:16]} 46. Kb3 {[%clk 0:00:04]}  Qf4 {[%clk 0:00:14]} 47. Rxa7 {[%clk 0:00:04]}  c5 {[%clk 0:00:14]} 48. b5 {[%clk 0:00:04]}  Nd4+ {[%clk 0:00:14]} 49. Ka2 {[%clk 0:00:03]}  Qxe5 {[%clk 0:00:14]} 50. Qd3 {[%clk 0:00:00]}  Qd5+ {[%clk 0:00:13]} 0-1


[Site "https://www.chess.com"]

[Event "Titled Tuesday Blitz August 08 Early 2023"]
[White "Sariego Figueredo, Wilfredo"]
[Black "Perske, Thore"]
[WhiteFideId "3500080"]
[BlackFideId "12902195"]
[WhiteElo "2301"]
[BlackElo "2510"]
[Result "0-1"]
[Round "9"]
[TimeControl "180+1"]
[Date "2023.08.08"]
[WhiteClock "0:00:00"]
[BlackClock "0:00:10"]
[Board "111"]

1. d4 {[%clk 0:03:00]}  d5 {[%clk 0:02:59]} 2. Bf4 {[%clk 0:03:00]}  c5 {[%clk 0:02:59]} 3. e3 {[%clk 0:03:00]}  Nc6 {[%clk 0:02:57]} 4. c3 {[%clk 0:03:00]}  Qb6 {[%clk 0:02:55]} 5. Qb3 {[%clk 0:02:59]}  c4 {[%clk 0:02:51]} 6. Qc2 {[%clk 0:02:59]}  Bf5 {[%clk 0:02:39]} 7. Qxf5 {[%clk 0:02:59]}  Qxb2 {[%clk 0:02:33]} 8. Qxd5 {[%clk 0:02:59]}  Nf6 {[%clk 0:01:40]} 9. Qxc4 {[%clk 0:02:43]}  Qxa1 {[%clk 0:01:39]} 10. Qb3 {[%clk 0:02:41]}  O-O-O {[%clk 0:01:28]} 11. Bb5 {[%clk 0:02:37]}  Nd5 {[%clk 0:00:58]} 12. Bxc6 {[%clk 0:02:03]}  bxc6 {[%clk 0:00:59]} 13. Qb8+ {[%clk 0:02:00]}  Kd7 {[%clk 0:00:59]} 14. Qb7+ {[%clk 0:01:57]}  Ke6 {[%clk 0:00:57]} 15. Qxc6+ {[%clk 0:01:55]}  Rd6 {[%clk 0:00:51]} 16. Bxd6 {[%clk 0:01:35]}  Qxb1+ {[%clk 0:00:48]} 17. Ke2 {[%clk 0:01:35]}  exd6 {[%clk 0:00:27]} 18. Nh3 {[%clk 0:01:03]}  Qxh1 {[%clk 0:00:18]} 19. c4 {[%clk 0:01:01]}  Nf6 {[%clk 0:00:09]} 20. Nf4+ {[%clk 0:00:41]}  Kf5 {[%clk 0:00:10]} 21. Qc8+ {[%clk 0:00:36]}  Kg5 {[%clk 0:00:09]} 22. h3 {[%clk 0:00:13]}  h5 {[%clk 0:00:09]} 23. Kf3 {[%clk 0:00:05]}  Qb1 {[%clk 0:00:09]} 24. Qd8 {[%clk 0:00:03]}  h4 {[%clk 0:00:09]} 25. Nd5 {[%clk 0:00:01]}  Qe4+ {[%clk 0:00:10]} 26. Ke2 {[%clk 0:00:01]}  Qc2+ {[%clk 0:00:08]} 27. Kf3 {[%clk 0:00:01]}  Kg6 {[%clk 0:00:08]} 28. Nxf6 {[%clk 0:00:01]}  gxf6 {[%clk 0:00:09]} 29. Qd7 {[%clk 0:00:01]}  Qd1+ {[%clk 0:00:09]} 30. Ke4 {[%clk 0:00:02]}  Qc2+ {[%clk 0:00:10]} 31. Kf3 {[%clk 0:00:00]}  Qf5+ {[%clk 0:00:10]} 0-1


[Site "https://www.chess.com"]